bitfinex/quotes_ETHUSD_20240714
["timestamp","ask_amount","ask_price","bid_price","bid_amount"]
[1720968828271,5.3455,3199.5,3198.4,6.38273754]
[1720968828471,3.55,3199.4,3198.4,6.38273754]
[1720968828738,0.55,3199.4,3198.4,6.38273754]
[1720968828873,0.28955,3199.3,3198.4,6.38273754]
[1720968829068,0.55,3199.2,3198.4,6.38273754]
[1720968831415,0.55,3199.3,3198.4,6.38273754]
[1720968832419,0.55,3199.3,3198.4,6.18273754]
[1720968834897,3.0,3199.4,3198.4,6.18273754]
[1720968835102,2.3455,3199.5,3198.4,6.80101129]
[1720968835274,0.55,3199.4,3198.4,6.18273754]
[1720968835474,3.55,3199.4,3198.4,6.18273754]
[1720968836631,2.3455,3199.5,3198.4,6.18273754]
[1720968837303,2.3455,3200.0,3198.7,2.50099]
[1720968837718,2.3455,3200.0,3198.4,6.18273754]
[1720968837916,0.2968129,3199.9,3198.5,0.86840475]
[1720968838517,0.55,3199.8,3198.5,0.86840475]
[1720968838919,0.55,3199.8,3198.5,3.36954475]
[1720968840080,0.55,3199.8,3198.5,0.86840475]
[1720968840542,0.32673903,3200.1,3198.7,2.3957]
[1720968840820,0.32673903,3200.1,3199.1,2.50066]
[1720968840990,2.3455,3200.5,3199.0,6.18273754]
[1720968841380,0.32681125,3200.3,3199.0,6.18273754]
[1720968841934,0.32681125,3200.3,3199.1,0.06251112]
[1720968842082,0.32681125,3200.3,3199.4,2.50044]
[1720968842283,0.32681125,3200.3,3199.2,0.68703255]
[1720968842284,0.32681125,3200.3,3199.2,0.62452487]
[1720968842621,0.32681125,3200.3,3199.3,0.06250573]
[1720968842821,0.32681125,3200.3,3199.2,3.12513487]
[1720968844305,0.32681125,3200.3,3199.3,2.56303567]
[1720968844529,0.32681125,3200.3,3199.4,0.31875605]
[1720968844701,0.32681125,3200.3,3199.5,0.06250566]
[1720968844907,4.15598157,3202.0,3199.7,2.50018]
[1720968844908,2.3455,3200.9,3199.7,2.50018]
[1720968845230,0.32682219,3200.8,3199.7,8.68291754]
[1720968845430,0.32682219,3200.8,3199.8,3.43091643]
[1720968845634,0.32682219,3200.8,3199.8,3.36842175]
[1720968846113,0.32682219,3200.8,3199.8,0.86829175]
[1720968846729,0.32682219,3200.8,3199.7,6.18273754]
[1720968847602,0.55,3200.7,3199.7,6.18273754]
[1720968848828,4.8966,3200.6,3199.7,6.18273754]
[1720968849135,5.9166,3200.5,3199.3,6.18273754]
[1720968849292,1.04012636,3200.4,3199.3,6.18273754]
[1720968849487,0.55,3200.3,3199.3,6.18273754]
[1720968850340,3.55,3200.3,3199.3,6.18273754]
[1720968851347,2.50466357,3200.3,3199.3,6.18273754]
[1720968851525,3.0,3200.2,3199.3,6.18273754]
[1720968851719,1.10046636,3200.1,3199.0,6.18273754]
[1720968852146,3.06140155,3200.1,3199.0,6.18273754]
[1720968852347,2.3731,3199.9,3199.0,6.18273754]
[1720968852648,0.55,3199.8,3199.0,6.18273754]
[1720968852945,0.55046636,3200.1,3199.2,2.50061]
[1720968852946,1.96093519,3200.1,3199.2,2.50061]
[1720968853245,1.96093519,3200.3,3199.3,0.250061]
[1720968853445,1.96093519,3200.3,3199.0,6.18273754]
[1720968853652,1.96093519,3200.2,3199.0,6.18273754]
[1720968854265,1.96093519,3200.1,3199.0,6.18273754]
[1720968854549,4.66085772,3200.4,3199.0,6.18273754]
[1720968854550,0.19609352,3200.0,3199.0,6.18273754]
[1720968854761,4.33403519,3200.4,3199.3,2.50054]
[1720968854962,0.32682219,3200.8,3199.4,2.56295373]
[1720968855145,0.3029236,3200.7,3199.4,2.8192491]
[1720968855723,0.3029236,3200.7,3199.5,2.50037]
[1720968856055,0.3029236,3200.7,3199.4,8.93945291]
[1720968856213,0.3029236,3200.7,3199.6,2.50029]
[1720968856648,3.32682219,3200.8,3199.6,2.56278859]
[1720968857514,3.32682219,3200.8,3199.6,2.50029]
[1720968858119,3.32682219,3200.8,3199.4,8.68317754]
[1720968858421,5.28992194,3200.8,3199.4,6.18273754]
[1720968858635,0.55,3200.7,3199.4,6.18273754]
[1720968858832,0.58399219,3200.6,3199.4,6.18273754]
[1720968859031,0.58399219,3200.6,3199.5,0.06250369]
[1720968859261,0.58399219,3200.6,3199.4,6.18273754]
[1720968859622,0.58399219,3200.6,3199.4,6.24524112]
[1720968859824,3.32682219,3200.8,3199.7,2.50021]
[1720968860119,3.32682219,3200.8,3199.4,8.68316754]
[1720968860365,5.28992194,3200.8,3199.4,8.68316754]
[1720968860534,5.28992194,3200.8,3199.5,2.50038]
[1720968860737,3.32682219,3200.8,3199.5,2.56287872]
[1720968861058,3.32682219,3200.8,3199.6,3.37485163]
[1720968861268,3.32682219,3200.8,3199.7,0.06249846]
[1720968861472,3.32682219,3200.8,3199.8,2.50015]
[1720968861763,3.32682219,3200.8,3199.9,2.336]
[1720968861764,0.32682219,3200.8,3199.9,2.336]
[1720968862071,1.96242107,3201.3,3200.0,0.2336]
[1720968862227,1.96242107,3201.2,3200.0,6.41633754]
[1720968862423,2.28918841,3201.3,3200.0,6.41633754]
[1720968862618,0.49056047,3201.0,3200.0,8.91632754]
[1720968862818,0.49056047,3201.0,3200.0,6.41633754]
[1720968863061,0.73585862,3201.0,3200.0,6.41633754]
[1720968863572,0.73585862,3201.0,3200.0,6.18273754]
[1720968863928,0.49056047,3201.0,3200.0,6.18273754]
[1720968864380,1.96242107,3200.8,3200.0,6.18273754]
[1720968864671,1.96151002,3200.8,3200.0,6.18273754]
[1720968865185,1.96151002,3200.7,3200.0,6.18273754]
[1720968865566,1.96151002,3200.6,3200.0,6.18273754]
[1720968865863,0.433461,3200.5,3199.6,6.18273754]
[1720968866652,2.39497102,3200.5,3199.6,6.18273754]
[1720968867073,1.96151002,3200.4,3199.6,6.18273754]
[1720968867273,1.96151002,3200.2,3199.6,6.18273754]
[1720968867447,1.96151002,3200.1,3199.6,6.18273754]
[1720968867647,0.196151,3200.1,3199.6,6.18273754]
[1720968867850,1.96199095,3200.1,3199.0,6.18273754]
[1720968868385,4.28579095,3199.9,3199.0,6.18273754]
[1720968868756,1.96199095,3199.8,3199.0,6.18273754]
[1720968868934,0.55,3199.8,3199.0,6.18273754]
[1720968869140,2.51199095,3199.8,3199.0,6.18273754]
[1720968869381,2.99557004,3199.8,3199.0,6.18273754]
[1720968870461,1.96199095,3199.7,3199.0,6.18273754]
[1720968870871,1.03357909,3199.8,3199.0,6.18273754]
[1720968871043,1.96254529,3199.5,3199.0,6.18273754]
[1720968871244,1.96254529,3199.4,3199.0,6.18273754]
[1720968871498,2.15879982,3199.4,3198.5,6.18273754]
[1720968872877,0.55,3199.3,3198.5,6.18273754]
[1720968873404,2.2702,3199.2,3198.5,6.18273754]
[1720968874301,1.96262708,3199.1,3198.5,6.18273754]
[1720968875689,2.2702,3199.2,3198.5,6.18273754]
[1720968875690,1.96262708,3199.0,3198.5,6.18273754]
[1720968876496,1.96262708,3198.9,3198.5,6.18273754]
[1720968876670,1.96262708,3199.0,3198.5,6.18273754]
[1720968876869,1.96262708,3199.4,3198.6,0.06253191]
[1720968877086,3.26179374,3200.3,3198.7,0.25636219]
[1720968877087,1.96262708,3199.6,3198.7,0.25636219]
[1720968877263,2.2702,3200.3,3198.9,2.50085]
[1720968877464,1.96228042,3200.2,3199.0,9.18273754]
[1720968878197,1.96228042,3200.3,3199.1,0.06250684]
[1720968878402,1.96228042,3200.3,3199.2,2.50061]
[1720968878569,2.28895532,3200.4,3199.3,3.25631168]
[1720968879086,2.28895532,3200.4,3199.4,0.0625027]
[1720968879483,2.28895532,3200.4,3199.6,2.5003]
[1720968879670,3.19482817,3201.0,3199.7,0.06249347]
[1720968879671,1.96228042,3200.6,3199.7,0.06249347]
[1720968880472,1.9628138,3200.6,3199.7,0.06249347]
[1720968880668,0.81728326,3201.0,3199.8,0.25627935]
[1720968880905,1.9628142,3200.6,3199.8,0.25627935]
[1720968882184,1.9628142,3200.6,3199.9,0.06249344]
[1720968882380,1.9628142,3200.7,3199.9,0.06249344]
[1720968883201,1.9632696,3200.7,3199.8,0.25627935]
[1720968883682,1.96334142,3200.7,3199.8,0.25627935]
[1720968884009,1.96334142,3200.7,3199.9,0.06249343]
[1720968884383,2.78062468,3201.0,3199.9,2.89438071]
[1720968884703,0.81728326,3201.0,3200.1,2.49991]
[1720968885234,0.81728326,3201.0,3199.9,2.83193728]
[1720968885235,0.81728326,3201.0,3199.9,0.33187728]
[1720968885368,0.27806247,3200.9,3199.9,0.33187728]
[1720968885575,1.96334142,3200.9,3199.6,5.5003]
[1720968885979,1.96334142,3200.9,3199.7,2.50017]
[1720968886179,0.81728326,3201.0,3199.7,2.50017]
[1720968886180,2.78062468,3201.0,3199.8,3.0624918]
[1720968886503,2.78062468,3201.0,3199.8,3.0]
[1720968886707,2.78062468,3201.0,3199.9,0.550017]
[1720968886901,0.81728326,3201.0,3199.9,0.550017]
[1720968887092,2.78020414,3201.0,3199.9,0.550017]
[1720968887494,1.96292088,3200.9,3199.9,0.550017]
[1720968887670,1.96292088,3200.8,3199.9,0.550017]
[1720968888002,1.96292088,3200.8,3199.5,2.3717]
[1720968888003,1.96292088,3200.7,3199.6,3.0]
[1720968888195,1.96292088,3200.6,3199.5,5.3717]
[1720968888500,2.24094129,3200.8,3199.5,5.3717]
[1720968888704,1.96292088,3200.7,3199.5,5.3717]
[1720968890138,2.72882041,3200.8,3199.5,3.0]
[1720968890285,1.96283106,3200.6,3199.4,6.18273754]
[1720968890486,0.27288204,3200.7,3199.4,6.18273754]
[1720968890487,1.96283106,3200.5,3199.4,6.18273754]
[1720968891014,0.27288204,3200.7,3199.4,6.18273754]
[1720968891015,1.96283106,3200.4,3199.4,6.18273754]
[1720968891210,1.96283106,3200.3,3199.4,6.18273754]
[1720968891678,1.96283106,3200.2,3199.4,6.18273754]
[1720968891882,2.15911417,3200.1,3199.4,6.18273754]
[1720968892220,1.96283106,3200.0,3199.4,6.18273754]
[1720968892382,2.15911417,3200.1,3199.4,6.18273754]
[1720968893310,1.96312677,3200.1,3199.4,6.18273754]
[1720968893819,1.96312677,3200.2,3199.5,0.06250111]
[1720968894116,1.96312677,3200.2,3199.4,6.18273754]
[1720968895014,1.96312677,3200.4,3199.4,8.74569532]
[1720968895225,1.96312677,3200.5,3199.5,2.34611953]
[1720968895522,1.96312677,3200.5,3199.6,0.06249774]
[1720968895714,0.32661247,3200.6,3199.6,2.56278774]
[1720968895918,2.28973924,3200.6,3199.6,2.50029]
[1720968896220,0.32661247,3200.6,3199.7,0.48464095]
[1720968896625,0.32661247,3200.6,3199.8,0.06249328]
[1720968897157,0.32661247,3200.6,3199.7,0.48464095]
[1720968897744,2.28955387,3200.6,3199.7,0.48464095]
[1720968897945,0.32661247,3200.6,3199.7,0.48464095]
[1720968898136,0.32661247,3200.6,3199.8,0.30474242]
[1720968898508,0.32661247,3200.6,3199.9,0.06249329]
[1720968898747,1.9629414,3200.7,3199.9,0.06249329]
[1720968899339,1.9629414,3200.7,3199.8,0.30474242]
[1720968899813,1.96300751,3200.6,3199.8,0.30474242]
[1720968900009,1.96300751,3200.7,3199.9,0.32895834]
[1720968900214,1.96300751,3200.6,3199.8,0.30474242]
[1720968900464,1.96300751,3200.7,3199.9,0.06249234]
[1720968900961,1.96300751,3200.7,3199.8,0.30474242]
[1720968901960,1.96300751,3200.8,3199.9,0.06249235]
[1720968902167,2.28943986,3200.9,3200.0,2.67223248]
[1720968902315,1.96281976,3201.0,3200.1,2.56238315]
[1720968902512,1.96281976,3201.1,3200.1,2.56238315]
[1720968902937,1.96281976,3201.2,3200.1,2.56238315]
[1720968903228,2.28940908,3201.3,3200.5,2.49958]
[1720968903431,0.32658932,3201.3,3200.6,0.06247462]
[1720968903820,1.96281976,3201.8,3200.8,2.4993]
[1720968904018,1.96281976,3201.8,3200.9,3.05022808]
[1720968904220,0.32661129,3202.3,3200.9,3.05022808]
[1720968904221,1.96281976,3201.9,3200.9,2.98776]
[1720968904527,1.96281976,3202.0,3201.0,0.06246556]
[1720968904842,2.61656767,3202.3,3201.0,0.06246556]
[1720968904843,1.96281976,3202.1,3201.1,2.49912]
[1720968905172,1.96281976,3202.2,3201.2,0.06246263]
[1720968905452,1.96030477,3202.2,3201.3,0.25615826]
[1720968905670,1.96030477,3202.2,3201.4,0.06246043]
[1720968905817,1.96030477,3202.5,3201.5,4.8843]
[1720968906022,1.96030477,3202.5,3201.6,0.0624556]
[1720968906366,5.71259374,3203.4,3201.7,2.4986]
[1720968906367,2.28692454,3202.9,3201.7,2.4986]
[1720968906516,2.28692454,3202.9,3201.8,0.31855569]
[1720968906517,0.32661977,3202.9,3201.8,0.31855569]
[1720968906721,0.32661977,3202.9,3202.0,2.49843]
[1720968906920,1.96030477,3203.2,3202.1,0.06244816]
[1720968907131,4.47083432,3204.0,3202.1,0.06244816]
[1720968907132,1.96030477,3203.6,3202.3,4.9265]
[1720968907355,0.32663871,3203.8,3202.4,2.49808]
[1720968907669,0.22869435,3203.7,3202.4,2.99696129]
[1720968907816,1.96030477,3204.0,3202.4,2.99696129]
[1720968908018,1.96030477,3204.0,3202.6,6.18273754]
[1720968908219,1.96030477,3204.1,3202.6,6.18273754]
[1720968908420,1.95423404,3204.1,3202.6,6.18273754]
[1720968908958,1.95423404,3204.0,3202.6,6.18273754]
[1720968909154,3.32662891,3204.2,3202.6,6.18273754]
[1720968909155,1.95423404,3204.1,3202.6,6.18273754]
[1720968909458,0.49017179,3203.7,3202.6,6.18273754]
[1720968910920,0.49017179,3203.7,3202.8,2.49779]
[1720968911119,0.49017179,3203.7,3203.0,2.49762]
[1720968911552,0.49017179,3203.7,3203.2,2.49749]
[1720968911742,0.49017179,3203.7,3203.1,0.06242444]
[1720968911743,0.49017179,3203.7,3203.3,0.31841433]
[1720968911922,0.49017179,3203.7,3203.3,0.25599144]
[1720968912119,0.49017179,3203.7,3203.0,5.56001264]
[1720968912762,0.49017179,3203.7,3203.2,2.49749]
[1720968912965,0.49017179,3203.7,3203.3,0.06242225]
[1720968913132,0.49017179,3203.7,3203.2,0.06242141]
[1720968913332,0.49017179,3203.7,3203.1,2.49757]
[1720968913535,0.49017179,3203.7,3203.2,2.75343875]
[1720968915767,0.49017179,3203.7,3203.3,4.87873036]
[1720968915969,0.49017179,3203.7,3203.5,2.49725]
[1720968916170,0.49017179,3203.7,3203.6,2.55960623]
[1720968916405,0.49017179,3203.7,3203.6,5.55960623]
[1720968916611,0.49017179,3203.7,3203.6,6.66529985]
[1720968916824,0.49017179,3203.7,3203.6,6.60288362]
[1720968918176,0.49017179,3203.7,3203.6,4.10569362]
[1720968918423,0.49017179,3203.7,3203.3,2.3189]
[1720968918424,0.49017179,3203.7,3203.4,5.49733]
[1720968918721,0.49017179,3203.7,3203.4,5.55974793]
[1720968918868,0.49017179,3203.7,3203.4,5.49733]
[1720968919285,0.49017179,3203.7,3203.5,0.06241729]
[1720968919826,1e-08,3203.7,3203.6,9.87288696]
[1720968919983,2.3173,3206.3,3204.0,2.49683]
[1720968920182,2.3173,3206.3,3204.2,6.18273754]
[1720968920382,0.32648444,3206.1,3204.2,6.18273754]
[1720968920697,0.48990529,3205.8,3204.2,6.18273754]
[1720968920880,0.48990529,3205.8,3204.3,0.61827375]
[1720968921333,2.8673,3205.7,3204.3,0.61827375]
[1720968921536,3.0,3205.6,3204.3,0.61827375]
[1720968921689,0.55,3205.5,3204.3,0.61827375]
[1720968923533,0.55,3205.5,3204.2,6.18273754]
[1720968923534,2.3173,3205.4,3204.2,6.18273754]
[1720968923834,0.55,3205.3,3204.2,6.18273754]
[1720968924022,3.55,3205.3,3204.2,6.18273754]
[1720968924219,3.0,3205.3,3204.2,6.18273754]
[1720968924401,2.3173,3205.4,3204.3,0.61827375]
[1720968925992,0.55,3205.3,3204.3,0.61827375]
[1720968926320,3.55,3205.3,3204.3,0.61827375]
[1720968926858,3.0,3205.3,3204.3,0.61827375]
[1720968927147,2.3173,3205.4,3204.3,0.68068538]
[1720968927356,3.0,3205.7,3204.4,0.68634229]
[1720968927646,3.48990529,3205.8,3204.4,0.68634229]
[1720968929560,3.48990529,3205.8,3204.5,0.06240293]
[1720968931355,3.48990529,3205.8,3204.5,0.0624029]
[1720968931854,3.48990529,3205.8,3204.4,0.68634229]
[1720968932038,0.59078053,3205.7,3204.4,0.68634229]
[1720968932555,0.55,3205.6,3204.4,0.68634229]
[1720968934333,0.55,3205.6,3204.2,6.18273754]
[1720968934655,3.55,3205.6,3204.2,6.18273754]
[1720968935782,0.32650541,3205.5,3204.2,6.18273754]
[1720968935978,0.55,3205.4,3204.2,6.18273754]
[1720968936138,4.2607,3205.3,3204.2,6.18273754]
[1720968936343,4.03107,3205.2,3203.9,6.18273754]
[1720968936746,1.889,3204.9,3203.9,6.18273754]
[1720968936965,0.55,3204.8,3203.9,6.18273754]
[1720968937167,2.3717,3204.7,3203.9,6.18273754]
[1720968937376,0.55,3204.6,3203.9,6.18273754]
[1720968937583,2.48117,3204.5,3203.4,6.18273754]
[1720968938012,0.55,3204.4,3203.4,6.18273754]
[1720968938439,3.55,3204.4,3203.4,6.18273754]
[1720968939558,2.3717,3204.3,3203.4,6.18273754]
[1720968939751,1.889,3204.1,3203.4,6.18273754]
[1720968940090,1.889,3204.1,3203.0,12.33]
[1720968940091,0.7939,3204.0,3203.0,12.33]
[1720968940238,2.3717,3203.9,3202.9,6.18273754]
[1720968940583,1.889,3203.7,3202.9,6.18273754]
[1720968940939,1.889,3203.3,3202.4,6.18273754]
[1720968941139,1.889,3203.3,3202.1,6.18273754]
[1720968941468,0.7389,3203.2,3202.1,6.18273754]
[1720968941793,1.889,3202.9,3202.1,6.18273754]
[1720968941998,0.55,3202.8,3202.1,6.18273754]
[1720968942377,1.889,3202.5,3202.1,6.18273754]
[1720968942599,0.55,3202.4,3201.5,6.18273754]
[1720968942804,0.7939,3202.4,3201.5,6.18273754]
[1720968942962,3.7939,3202.4,3201.5,6.18273754]
[1720968944500,3.0,3202.3,3201.5,6.18273754]
[1720968944987,0.55,3202.2,3201.5,6.18273754]
[1720968946363,3.0,3202.7,3201.5,6.18273754]
[1720968946564,0.5524,3202.6,3201.5,6.80101129]
[1720968946805,3.0,3202.7,3201.5,6.80101129]
[1720968946994,5.3717,3203.1,3201.5,6.80101129]
[1720968947585,4.52696479,3204.0,3201.6,2.3105]
[1720968947772,2.5793,3204.0,3201.6,7.87170506]
[1720968948082,2.5793,3204.0,3202.0,2.49842]
[1720968948301,2.3354,3204.5,3202.3,2.49817]
[1720968948465,2.3354,3204.5,3202.8,2.49781]
[1720968948656,2.3354,3204.5,3202.9,0.06242772]
[1720968948873,2.3354,3204.5,3202.5,0.06242767]
[1720968949171,2.3354,3204.5,3202.5,5.49803]
[1720968949386,0.23354,3204.4,3202.6,1.17431976]
[1720968950061,2.3354,3204.5,3202.6,1.17431976]
[1720968950664,0.55,3204.4,3202.6,1.17431976]
[1720968951659,3.55,3204.4,3202.6,1.17431976]
[1720968952499,3.55,3204.4,3202.7,6.24517351]
[1720968952798,3.55,3204.4,3202.8,0.06243594]
[1720968952976,4.13854,3204.4,3202.9,0.62451735]
[1720968953763,2.3354,3204.5,3203.0,6.24517345]
[1720968954002,2.2615,3205.0,3203.1,7.85785]
[1720968954297,2.2615,3205.0,3203.3,2.49739]
[1720968954498,2.2615,3205.0,3203.4,0.06241831]
[1720968954697,2.2615,3205.0,3203.4,3.06241831]
[1720968954897,2.2615,3205.0,3203.5,0.85598083]
[1720968955095,2.2615,3205.0,3203.6,0.06241832]
[1720968955472,0.55,3204.9,3203.6,0.06241832]
[1720968955704,3.55,3204.9,3203.5,0.85598083]
[1720968955900,3.55,3204.9,3202.9,3.12217735]
[1720968956100,3.55,3204.9,3203.1,5.3603]
[1720968956101,0.3265545,3204.8,3203.1,5.3603]
[1720968956606,0.55,3204.7,3203.2,0.06242533]
[1720968957165,0.55,3204.7,3203.1,5.3603]
[1720968958005,0.55,3204.7,3203.1,5.3353]
[1720968958197,0.55,3204.7,3203.2,1.2142292]
[1720968958396,0.55,3204.7,3203.3,6.18273754]
[1720968958901,0.55,3204.7,3203.3,6.24516295]
[1720968961609,0.55,3204.7,3203.3,6.18273754]
[1720968963130,0.3265545,3204.8,3203.4,2.55976528]
[1720968963408,0.3265545,3204.8,3203.5,0.87425028]
[1720968963577,0.3265545,3204.8,3203.7,2.49705]
[1720968963772,0.3265545,3204.8,3203.8,0.06241018]
[1720968964315,0.3265545,3204.8,3203.8,2.55944018]
[1720968964529,0.3265545,3204.8,3203.8,2.49703]
[1720968964816,0.3265545,3204.8,3203.9,2.6724132]
[1720968964991,0.3265545,3204.8,3203.9,2.610003]
[1720968965392,0.3265545,3204.8,3203.9,2.3603]
[1720968966999,0.3265545,3204.8,3203.6,6.18273754]
[1720968968290,0.3265545,3204.8,3203.6,6.24515413]
[1720968969218,0.3265545,3204.8,3203.6,6.18273754]
[1720968971719,0.3265545,3204.8,3203.6,6.24515403]
[1720968971929,0.3265545,3204.8,3203.7,0.96166443]
[1720968972431,0.3265545,3204.8,3203.8,0.06241642]
[1720968972929,0.3265545,3204.8,3204.0,2.49687]
[1720968973095,0.3265545,3204.8,3204.1,0.06240682]
[1720968973926,0.3265545,3204.8,3204.0,2.49687]
[1720968974126,0.3265545,3204.8,3204.1,0.249687]
[1720968974435,0.3265545,3204.8,3204.2,0.0624052]
[1720968975805,0.3265545,3204.8,3204.1,2.746477]
[1720968977631,0.3265545,3204.8,3204.2,0.06240425]
[1720968978199,0.3265545,3204.8,3204.2,2.55907425]
[1720968978520,0.3265545,3204.8,3204.4,2.2845]
[1720968978833,0.3265545,3204.8,3204.7,2.49633]
[1720968979035,0.3265545,3204.8,3204.6,2.49634]
[1720968979201,0.3265545,3204.8,3204.5,2.49648]
[1720968980837,0.3265545,3204.8,3204.5,2.55887697]
[1720968981146,0.3265545,3204.8,3204.6,0.7843377]
[1720968981315,0.3265545,3204.8,3204.4,5.2845]
[1720968983533,0.3265545,3204.8,3204.4,3.0]
[1720968984519,0.3265545,3204.8,3204.3,0.53055513]
[1720968984719,0.3265545,3204.8,3204.1,3.249687]
[1720968987151,0.3265545,3204.8,3204.1,0.249687]
[1720968987328,0.3265545,3204.8,3204.0,6.18273754]
[1720968987729,0.3265545,3204.8,3204.0,6.24515274]
[1720968988138,0.3265545,3204.8,3204.0,6.24514383]
[1720968990343,0.3265545,3204.8,3204.0,6.18273754]
[1720968991624,0.3265545,3204.8,3204.1,0.06241322]
[1720968991953,0.3265545,3204.8,3204.2,0.62451508]
[1720968992158,0.3265545,3204.8,3204.3,0.06240424]
[1720968994338,0.3265545,3204.8,3204.3,2.49663]
[1720968995163,0.3265545,3204.8,3204.4,2.3457]
[1720968995385,0.3265545,3204.8,3204.7,2.49633]
[1720968995526,0.3265545,3204.8,3204.7,2.81459283]
[1720968995721,0.3265545,3204.8,3204.7,5.31092283]
[1720968996028,2.331,3206.0,3204.7,3.25587227]
[1720968996257,0.32652487,3205.8,3204.7,8.93491981]
[1720968996562,0.32652487,3205.8,3204.8,3.0]
[1720968996746,0.32652487,3205.8,3204.8,3.94386098]
[1720968998430,0.32652487,3205.8,3204.8,6.50248359]
[1720968998631,0.32652487,3205.8,3205.0,2.49609]
[1720968998830,0.32652487,3205.8,3204.8,4.00624489]
[1720968999023,0.32652487,3205.8,3204.9,2.49617]
[1720968999248,0.32652487,3205.8,3205.0,3.20871546]
[1720969000037,0.32652487,3205.8,3205.0,3.14633149]
[1720969000371,0.32652487,3205.8,3205.1,0.06238376]
[1720969000739,0.32652487,3205.8,3205.0,3.14633149]
[1720969000939,0.32652487,3205.8,3205.1,0.06238375]
[1720969001142,0.32652487,3205.8,3205.3,2.3457]
[1720969001346,1.96077742,3206.8,3205.4,2.55808676]
[1720969001587,1.96077742,3206.8,3205.5,6.18273754]
[1720969001731,0.32658593,3206.7,3205.6,0.0623734]
[1720969002435,0.32658593,3206.7,3205.5,6.24511092]
[1720969002737,0.32658593,3206.7,3205.6,0.62451109]
[1720969003588,2.331,3206.6,3205.6,0.62451109]
[1720969003790,2.331,3206.6,3205.5,6.18273754]
[1720969005384,2.331,3206.6,3205.5,6.24511411]
[1720969005697,2.331,3206.6,3205.5,6.18273754]
[1720969006063,2.331,3206.6,3205.5,6.24511128]
[1720969006265,1.89,3206.4,3205.5,6.18273754]
[1720969006461,4.33577159,3206.2,3205.5,6.18273754]
[1720969007179,1.95850709,3206.1,3205.5,6.18273754]
[1720969007361,1.95850709,3206.1,3205.2,6.18273754]
[1720969007796,1.95850709,3205.8,3205.2,6.18273754]
[1720969007967,4.33550709,3205.8,3205.2,6.18273754]
[1720969008307,2.3920578,3205.7,3205.2,6.18273754]
[1720969009432,1.95850709,3205.6,3205.2,6.18273754]
[1720969009894,1.95850709,3205.7,3205.2,6.18273754]
[1720969010306,2.377,3205.8,3205.2,6.18273754]
[1720969010605,1.95975448,3205.7,3205.2,6.18273754]
[1720969010818,1.95975448,3205.6,3205.2,6.18273754]
[1720969011024,1.95975448,3205.7,3205.2,6.18273754]
[1720969011199,1.95975448,3205.6,3205.2,6.18273754]
[1720969011895,1.95975448,3205.6,3204.8,6.18273754]
[1720969012297,2.41719993,3205.6,3204.8,6.18273754]
[1720969012620,1.95975448,3205.5,3204.8,6.18273754]
[1720969013182,1.95975448,3205.6,3204.8,6.18273754]
[1720969013633,1.95975448,3205.5,3204.8,6.18273754]
[1720969014515,1.95975448,3205.6,3204.8,6.18273754]
[1720969014722,2.41719993,3205.6,3204.8,6.18273754]
[1720969014890,1.95975448,3205.5,3204.8,6.18273754]
[1720969016700,1.95975448,3205.4,3204.8,6.18273754]
[1720969016953,1.96120049,3205.5,3204.8,6.18273754]
[1720969017441,1.96120049,3205.4,3204.8,6.18273754]
[1720969017617,1.96120049,3205.5,3204.8,6.80101129]
[1720969018304,1.96120049,3205.4,3204.8,6.80101129]
[1720969018506,1.96120049,3205.5,3204.8,6.80101129]
[1720969019823,1.96120049,3205.5,3204.9,0.06239301]
[1720969020029,1.96120049,3205.5,3204.8,6.80101129]
[1720969020347,1.96181308,3205.6,3204.9,0.68010113]
[1720969021720,1.96181308,3205.5,3204.9,0.68010113]
[1720969022123,1.96181308,3205.4,3204.9,0.68010113]
[1720969022359,1.96181308,3205.5,3204.9,0.68010113]
[1720969022542,4.66578192,3205.8,3204.9,0.68010113]
[1720969022543,2.377,3205.8,3204.9,0.68010113]
[1720969022870,1.96199129,3205.4,3204.8,6.18273754]
[1720969023768,1.96199129,3205.4,3204.5,18.51273754]
[1720969024471,1.96199129,3205.3,3204.5,18.51273754]
[1720969025228,1.96199129,3205.4,3204.5,18.51273754]
[1720969025664,1.96199129,3205.3,3204.5,18.51273754]
[1720969025888,0.26473668,3205.7,3204.5,18.51273754]
[1720969026043,1.96239102,3205.3,3204.5,18.51273754]
[1720969026775,1.96239102,3205.2,3204.6,0.06240551]
[1720969026964,1.96239102,3205.2,3204.5,18.51273754]
[1720969026965,1.96239102,3205.3,3204.5,18.51273754]
[1720969027162,1.96239102,3205.3,3204.6,1.85127375]
[1720969027882,0.26473668,3205.7,3204.6,1.85127375]
[1720969027883,1.96239102,3205.4,3204.6,1.85127375]
[1720969029161,2.55419287,3205.7,3204.6,1.85127375]
[1720969029162,0.26473668,3205.7,3204.6,1.85127375]
[1720969029486,1.96220892,3205.4,3204.7,0.06239459]
[1720969029782,1.96220892,3205.4,3204.6,1.85127375]
[1720969029984,1.96220892,3205.4,3204.5,6.18273754]
[1720969030386,1.96220892,3205.2,3204.5,6.18273754]
[1720969030686,2.28924374,3205.5,3204.5,6.18273754]
[1720969030687,1.96220892,3205.0,3204.5,6.18273754]
[1720969030902,2.3401,3205.1,3204.5,6.18273754]
[1720969030903,1.96220892,3204.6,3204.5,6.18273754]
[1720969031087,0.19622089,3204.6,3203.9,6.18273754]
[1720969031274,1.96289389,3204.5,3203.9,6.18273754]
[1720969031599,2.3401,3204.4,3203.9,6.18273754]
[1720969031980,2.3401,3204.4,3203.1,0.3129]
[1720969032169,1.96289389,3204.2,3203.1,0.3129]
[1720969032365,2.3401,3204.4,3203.1,0.60020302]
[1720969032592,1.96267186,3204.2,3203.1,0.60020302]
[1720969032789,1.96267186,3204.2,3203.1,0.3129]
[1720969032790,1.96202556,3204.2,3203.1,0.3129]
[1720969032993,1.96202556,3204.3,3203.2,0.06242449]
[1720969033195,0.32668676,3204.8,3203.4,4.88323]
[1720969033196,1.96202556,3204.5,3203.4,4.88323]
[1720969033395,2.61571658,3204.8,3203.8,2.49701]
[1720969033396,2.28871232,3204.8,3203.8,2.49701]
[1720969033568,2.28871232,3204.8,3203.8,2.55941476]
[1720969033769,1.96202556,3204.9,3203.9,0.50565048]
[1720969034164,1.96202556,3204.7,3203.9,0.50565048]
[1720969034408,1.96202556,3204.8,3203.9,0.50565048]
[1720969034615,1.96202556,3204.8,3203.8,2.49701]
[1720969034616,1.96202556,3204.8,3203.8,2.55941478]
[1720969034906,1.96202556,3205.0,3203.5,0.06240478]
[1720969035116,1.96202556,3205.0,3203.9,3.0]
[1720969035408,0.32671361,3205.2,3203.9,3.0]
[1720969035609,0.32671361,3205.2,3203.6,3.0]